fUST/lending_fUST_20251028
["ID","MTS","AMOUNT","RATE_DAILY","PERIOD"]
[392521459,1761605615408,-10000.01,0.0001698,2]
[392521460,1761605615442,-2932.32022354,0.0001698,2]
[392521461,1761605615468,-593.97,0.0001698,3]
[392521462,1761605615495,-296.98,0.0001698,3]
[392521463,1761605615722,-150.0,0.00016989,2]
[392521464,1761605615756,-150.0,0.00016989,2]
[392521465,1761605615784,-150.0,0.00016989,2]
[392521466,1761605615812,-500.0,0.00016989,2]
[392521467,1761605615841,-131.41138731,0.00016989,2]
[392521468,1761605615920,-190.6467783,0.00016989,2]
[392521469,1761605615929,-500.0,0.00016989,2]
[392521470,1761605615942,-462.98383945,0.00016989,2]
[392521471,1761605615952,-492.0126711,0.00016989,2]
[392521472,1761605615962,-500.0,0.00016989,2]
[392521473,1761605615972,-500.0,0.00016989,2]
[392521474,1761605615982,-500.0,0.00016989,2]
[392521475,1761605615992,-388.35153727,0.00016989,2]
[392521476,1761605616003,-500.0,0.00016989,2]
[392521477,1761605616013,-500.0,0.00016989,2]
[392521478,1761605616022,-388.38687631,0.00016989,2]
[392521479,1761605616032,-172.94668672,0.00016989,2]
[392521480,1761605616051,-327.05331328,0.00016989,2]
[392521481,1761605616060,-500.0,0.00016989,2]
[392521482,1761605616069,-500.0,0.00016989,2]
[392521483,1761605616079,-499.79391945,0.00016989,2]
[392521484,1761605616088,-500.0,0.00016989,2]
[392521485,1761605616097,-500.0,0.00016989,2]
[392521486,1761605616106,-105.47299081,0.00016989,2]
[392521487,1761605616123,-394.52700919,0.00016989,2]
[392521488,1761605616132,-199.44299081,0.00016989,2]
[392521489,1761605616176,-300.55700919,0.00016989,2]
[392521490,1761605616208,-500.0,0.00016989,2]
[392521491,1761605616239,-500.0,0.00016989,2]
[392521492,1761605616271,-500.0,0.00016989,2]
[392521493,1761605616301,-500.0,0.00016989,2]
[392521494,1761605616331,-416.46037509,0.00016989,2]
[392521495,1761605616361,-500.0,0.00016989,2]
[392521496,1761605616812,-156.15479971,0.0001699,2]
[392521497,1761605616830,-500.0,0.0001699,2]
[392521498,1761605616843,-416.46037509,0.0001699,2]
[392521499,1761605616866,-500.0,0.0001699,2]
[392521500,1761605616887,-3565.97523144,0.0001699,2]
[392521501,1761605616916,-10000.01,0.0001699,2]
[392521502,1761605616936,-10000.01,0.0001699,2]
[392521503,1761605619920,-2100.0,0.00016058,2]
[392521504,1761605619948,-890.99,0.0001698,3]
[392521505,1761605620013,-4018.03,0.0001699,2]
[392521506,1761605622930,-10000.01,0.0001699,2]
[392521507,1761605623044,-10000.01,0.0001699,2]
[392521508,1761605623197,-10000.01,0.0001699,2]
[392521509,1761605623297,-10000.01,0.0001699,2]
[392521510,1761605623408,-10000.01,0.0001699,2]
[392521515,1761605623697,-10000.01,0.0001699,2]
[392521516,1761605623720,-10000.01,0.0001699,2]
[392521517,1761605623765,-10000.01,0.0001699,2]
[392521518,1761605623891,-10000.01,0.0001699,2]
[392521519,1761605624015,-10000.01,0.0001699,2]
[392521520,1761605624212,-10000.01,0.0001699,2]
[392521521,1761605624368,-10000.01,0.0001699,2]
[392521522,1761605624516,-10000.01,0.0001699,2]
[392521529,1761605752862,-1500.0,0.00015,2]
[392521530,1761605752890,-500.0,0.00015953,2]
[392521531,1761605752917,-1626.66071165,0.00016014,2]
[392521532,1761605752946,-500.0,0.00016114,2]
[392521533,1761605752976,-500.0,0.00016277,2]
[392521534,1761605753004,-300.0,0.00016817,2]
[392521535,1761605753133,-146.6885767,0.00016818,2]
[392521536,1761605753169,-153.3114233,0.00016818,2]
[392521537,1761605753198,-182.0,0.00016818,2]
[392521538,1761605753227,-300.0,0.00016818,2]
[392521539,1761605753255,-300.0,0.00016818,2]
[392521540,1761605753284,-1200.0,0.00016818,2]
[392521541,1761605753317,-606.52549046,0.00016819,2]
[392521542,1761605753351,-500.0,0.00016819,2]
[392521543,1761605753382,-601.82893057,0.00016819,2]
[392521544,1761605753413,-500.0,0.00016819,2]
[392521545,1761605753443,-500.0,0.00016819,2]
[392521546,1761605753502,-500.0,0.00016819,2]
[392521547,1761605753534,-192.0579959,0.00016819,2]
[392521548,1761605753804,-120.62031544,0.0001682,2]
[392521549,1761605753826,-192.0579959,0.0001682,2]
[392521550,1761605753847,-8615.8940082,0.0001682,2]
[392521551,1761605753880,-10000.01,0.0001682,2]
[392521552,1761605753991,-10000.01,0.0001682,2]
[392521553,1761605754009,-10000.01,0.0001682,2]
[392521554,1761605754035,-4323.80779675,0.0001682,2]
[392521555,1761605754044,-403.5761775,0.00016897,2]
[392521556,1761605754053,-1251.6932506,0.00016979,2]
[392521557,1761605754063,-151.0,0.0001698,2]
[392521558,1761605754072,-151.0,0.0001698,2]
[392521559,1761605754081,-151.0,0.0001698,2]
[392521560,1761605754091,-151.0,0.0001698,2]
[392521561,1761605754100,-213.96859442,0.0001698,2]
[392521562,1761605754109,-412.0,0.00016989,2]
[392521563,1761605754118,-2790.96418073,0.0001699,2]
[392521564,1761605755676,-10000.01,0.0001699,2]
[392521566,1761605778924,207.66175221,0.00014555,2]
[392521567,1761605780007,-207.66175221,0.00014702,2]
[392521568,1761605794487,207.66175221,0.00014702,2]
[392521569,1761605802606,207.66175221,0.00014702,2]
[392521570,1761605818043,207.66175221,0.00014702,2]
[392521572,1761605826081,207.66175221,0.00014702,2]
[392521573,1761605840825,415.32350442,0.00014702,2]
[392521574,1761605848655,415.32350442,0.00014702,2]
[392521575,1761605863575,415.32350442,0.00014702,2]
[392521576,1761605872027,415.32350442,0.00014702,2]
[392521577,1761605887017,207.66175221,0.00014702,2]
[392521578,1761605895423,415.32350442,0.00014702,2]
[392521579,1761605911405,415.32350442,0.00014702,2]
[392521585,1761605919273,415.32350442,0.00014702,2]
[392521589,1761605925156,500.0,0.00030136,120]
[392521592,1761605934269,415.32350442,0.00014702,2]
[392521597,1761605942173,415.32350442,0.00014702,2]
[392521598,1761605958626,207.66175221,0.00014702,2]
[392521604,1761605966761,207.66175221,0.00014702,2]
[392521614,1761605981478,207.66175221,0.00014702,2]
[392521619,1761605989367,207.66175221,0.00014702,2]
[392521624,1761606012661,2500.0,0.00014702,2]
[392521630,1761606034778,2308.46619475,0.00014702,2]
[392521631,1761606034802,191.53380525,0.00014702,2]
[392521639,1761606056850,2500.0,0.00014702,2]
[392521648,1761606078684,300.0,0.00014701,2]
[392521659,1761606100522,300.0,0.00014701,2]
[392521664,1761606122476,300.0,0.00014701,2]
[392521681,1761606144854,207.66175221,0.00014701,2]
[392521685,1761606152989,207.66175221,0.00014701,2]
[392521736,1761606167871,1407.66175221,0.00014701,2]
[392521742,1761606175721,1407.66175221,0.00014701,2]
[392521754,1761606190756,1500.0,0.00014701,2]
[392521755,1761606198717,1677.82918591,0.00014701,2]
[392521756,1761606198740,29.8325663,0.00014701,2]
[392521761,1761606207001,1707.66175221,0.00014701,2]
[392521762,1761606214952,1707.66175221,0.00014701,2]
[392521763,1761606223037,1707.66175221,0.00014701,2]
[392521764,1761606230887,1707.66175221,0.00014701,2]
[392521765,1761606239035,1707.66175221,0.00014701,2]
[392521766,1761606246948,1200.0,0.00014701,2]
[392521767,1761606255655,1707.66175221,0.00014701,2]
[392521769,1761606263602,1707.66175221,0.00014701,2]
[392521770,1761606271765,1707.66175221,0.00014701,2]
[392521771,1761606273030,-309.19269106,0.00014849,2]
[392521772,1761606279578,261.70123895,0.00014701,2]
[392521773,1761606279600,1136.7678222,0.00014701,2]
[392521774,1761606287683,1398.46906115,0.00014701,2]
[392521775,1761606296063,1398.46906115,0.00014701,2]
[392521776,1761606304109,1190.80730894,0.00014701,2]
[392521780,1761606311993,3290.80730894,0.00014701,2]
[392521892,1761606320079,1584.68943762,0.00014701,2]
[392521894,1761606320102,1913.77962353,0.00014701,2]
[392522010,1761606328065,3498.46906115,0.00014701,2]
[392522148,1761606336823,3498.46906115,0.00014701,2]
[392522287,1761606345516,1089.29225417,0.00014701,2]
[392522288,1761606345542,2409.17680698,0.00014701,2]
[392522419,1761606353709,3498.46906115,0.00014701,2]
[392522547,1761606361521,3498.46906115,0.00014701,2]
[392522601,1761606367240,-1076.39,0.00033744,60]
[392522602,1761606367266,-1076.39,0.00033744,60]
[392522603,1761606367291,-1076.39,0.00033744,60]
[392522604,1761606367316,-1076.39,0.00033744,60]
[392522605,1761606367341,-1076.39,0.00033744,60]
[392522606,1761606367367,-1076.39,0.00033744,60]
[392522607,1761606367392,-1076.39,0.00033744,60]
[392522608,1761606367417,-1076.39,0.00033744,60]
[392522609,1761606367444,-1076.39,0.00033744,60]
[392522610,1761606367468,-1076.39,0.00033744,60]
[392522611,1761606367495,-1076.39,0.00033744,60]
[392522613,1761606367519,-1076.39,0.00033744,60]
[392522614,1761606367545,-1076.39,0.00033744,60]
[392522615,1761606367570,-1076.39,0.00033744,60]
[392522616,1761606367595,-1076.39,0.00033744,60]
[392522617,1761606367621,-1076.39,0.00033744,60]
[392522618,1761606367645,-1076.39,0.00033744,60]
[392522619,1761606367673,-1076.39,0.00033744,60]
[392522620,1761606367698,-1076.39,0.00033744,60]
[392522621,1761606367722,-1076.39,0.00033744,60]
[392522622,1761606367746,-1076.39,0.00033744,60]
[392522623,1761606367774,-1076.39,0.00033744,60]
[392522624,1761606367799,-1076.39,0.00033744,60]
[392522625,1761606367825,-1076.60250409,0.00033744,60]
[392522626,1761606367850,-1672.36,0.00033744,60]
[392522627,1761606367876,-1672.36,0.00033744,60]
[392522628,1761606367903,-1672.36,0.00033744,60]
[392522629,1761606367928,-1672.36,0.00033744,60]
[392522630,1761606367954,-1672.36,0.00033744,60]
[392522631,1761606367980,-1672.36,0.00033744,60]
[392522632,1761606368235,-1672.36,0.00033744,60]
[392522633,1761606368262,-1672.36,0.00033744,60]
[392522634,1761606368290,-1672.36,0.00033744,60]
[392522635,1761606368317,-1672.36,0.00033744,60]
[392522636,1761606368344,-1672.36,0.00033744,60]
[392522637,1761606368372,-1672.36,0.00033744,60]
[392522638,1761606368400,-1672.36,0.00033744,60]
[392522639,1761606368427,-1672.36,0.00033744,60]
[392522640,1761606368456,-1672.36,0.00033744,60]
[392522641,1761606368482,-1672.36,0.00033744,60]
[392522642,1761606368508,-1672.36,0.00033744,60]
[392522643,1761606368535,-1672.36,0.00033744,60]
[392522644,1761606368564,-1672.36,0.00033744,60]
[392522645,1761606368591,-1672.36,0.00033744,60]
[392522646,1761606368619,-1672.36,0.00033744,60]
[392522647,1761606368646,-1672.36,0.00033744,60]
[392522648,1761606368675,-1672.36,0.00033744,60]
[392522649,1761606368704,-1672.47931669,0.00033744,60]
[392522650,1761606368730,-404.05214,0.00033744,60]
[392522651,1761606368757,-404.05214,0.00033744,60]
[392522652,1761606368783,-404.05214,0.00033744,60]
[392522653,1761606368808,-404.05214,0.00033744,60]
[392522654,1761606368833,-404.05214,0.00033744,60]
[392522655,1761606368861,-500.0,0.00033744,60]
[392522656,1761606368888,-500.0,0.00033744,60]
[392522657,1761606368914,-1578.66,0.00033744,60]
[392522658,1761606368939,-1295.82854728,0.00033744,60]
[392522659,1761606368964,-593.5273955,0.00033744,120]
[392522660,1761606368989,-930.0,0.00033744,90]
[392522661,1761606369014,-511.53286659,0.00033744,120]
[392522662,1761606369039,-540.68888491,0.00033744,30]
[392522663,1761606369065,-1646.53271536,0.00033744,120]
[392522664,1761606369089,-268.07403951,0.00033744,120]
[392522665,1761606369114,-283.23033491,0.00033744,120]
[392522666,1761606369138,-291.28173054,0.00033744,120]
[392522667,1761606369163,-992.84906006,0.00033744,120]
[392522668,1761606369188,-942.79294709,0.00033744,120]
[392522669,1761606369212,-999.999986,0.00033744,120]
[392522670,1761606369237,-916.18062007,0.00033744,60]
[392522671,1761606369262,-315.51780695,0.00033744,31]
[392522672,1761606369289,-259.98012758,0.00033744,120]
[392522673,1761606369315,-869.60128109,0.00033744,120]
[392522674,1761606369340,-710.99985186,0.00033744,120]
[392522675,1761606369365,-240.82074905,0.00033744,120]
[392522676,1761606369390,-249.07127621,0.00033744,120]
[392522677,1761606369413,-810.28377633,0.00033744,45]
[392522678,1761606369438,-348.1699096,0.00033744,120]
[392522679,1761606369463,-399.59841612,0.00033744,30]
[392522680,1761606369490,-181.70836631,0.00033744,30]
[392522681,1761606369514,-570.65537802,0.00033744,120]
[392522682,1761606369540,-929.74662606,0.00033744,60]
[392522683,1761606369570,-629.60220738,0.00033744,120]
[392522684,1761606369601,-463.59298126,0.00033744,120]
[392522685,1761606369626,-349.93661829,0.00033744,120]
[392522686,1761606369650,-1037.10936478,0.00033744,120]
[392522687,1761606369689,-1249.73774658,0.00033744,120]
[392522688,1761606369717,-200.23268874,0.00033744,120]
[392522689,1761606369745,-438.70024644,0.00033744,120]
[392522690,1761606369771,-1276.46060809,0.00033744,120]
[392522691,1761606369797,-222.05310359,0.00033744,120]
[392522692,1761606369822,-1024.09709654,0.00033744,120]
[392522693,1761606369847,-325.99301799,0.00033744,120]
[392522694,1761606369871,-875.63839131,0.00033744,120]
[392522695,1761606369897,-925.8777804,0.00033744,60]
[392522696,1761606369923,-560.62696478,0.00033744,120]
[392522697,1761606369948,-1070.90910164,0.00033744,60]
[392522698,1761606369972,-1126.75838448,0.00033744,60]
[392522699,1761606369996,-167.18472057,0.00033744,120]
[392522700,1761606370020,-547.82837931,0.00033744,120]
[392522701,1761606370044,-183.57612148,0.00033744,30]
[392522702,1761606370069,-1039.44078629,0.00033744,120]
[392522703,1761606370093,-225.63308243,0.00033744,120]
[392522704,1761606370119,-943.70019137,0.00033744,30]
[392522705,1761606370144,-267.45713969,0.00033744,120]
[392522706,1761606370170,-267.90372454,0.00033744,120]
[392522707,1761606370196,-353.98479345,0.00033744,120]
[392522708,1761606370221,-930.81298248,0.00033744,120]
[392522709,1761606370246,-1022.10037552,0.00033744,120]
[392522710,1761606370271,-761.71326949,0.00033744,120]
[392522711,1761606370296,-477.77004774,0.00033744,120]
[392522712,1761606370322,-1014.41901677,0.00033744,60]
[392522713,1761606370347,-294.66682512,0.00033744,120]
[392522714,1761606370372,-665.74705486,0.00033744,120]
[392522715,1761606370401,-580.51911641,0.00033744,120]
[392522716,1761606370426,-160.99520904,0.00033744,120]
[392522717,1761606370451,-653.97841172,0.00033744,60]
[392522718,1761606370477,-200.26215357,0.00033744,60]
[392522719,1761606370502,-500.0,0.00033744,30]
[392522720,1761606370528,-500.0,0.00033744,30]
[392522721,1761606370555,-500.0,0.00033744,30]
[392522722,1761606370582,-500.0,0.00033744,30]
[392522723,1761606370616,-282.2316718,0.00033744,120]
[392522724,1761606370641,-500.0,0.00033744,120]
[392522725,1761606370864,-900.0,0.00033744,120]
[392522726,1761606370890,-470.38870605,0.00033744,120]
[392522727,1761606371071,1288.89701305,0.00033744,20]
[392522728,1761606371737,300.0,0.000147,2]
[392522729,1761606377541,293.89507072,0.000147,2]
[392522730,1761606383668,-6.10492928,0.000147,2]
[392522734,1761606394604,300.0,0.000147,2]
[392522735,1761606402892,300.0,0.000147,2]
[392522736,1761606411221,300.0,0.000147,2]
[392522737,1761606419419,300.0,0.000147,2]
[392522738,1761606427079,300.0,0.000147,2]
[392522739,1761606435208,507.66175221,0.000147,2]
[392522740,1761606443044,507.66175221,0.000147,2]
[392522741,1761606451083,507.66175221,0.000147,2]
[392522742,1761606458918,507.66175221,0.000147,2]
[392522744,1761606467656,1707.66175221,0.000147,2]
[392522747,1761606482960,1200.0,0.000147,2]
[392522801,1761606491673,1500.0,0.000147,2]
[392522814,1761606496906,10000.0,0.000183,30]
[392522882,1761606506098,520.0,0.00030137,120]
[392522892,1761606506676,1707.66175221,0.000147,2]
[392522929,1761606508864,341.82962818,0.000147,2]
[392522930,1761606508888,4701.17037182,0.000147,2]
[392522963,1761606514473,1707.66175221,0.000147,2]
[392522973,1761606529909,1707.66175221,0.000147,2]
[392522975,1761606537668,1707.66175221,0.000147,2]
[392523019,1761606541120,500.0,0.00030137,120]
[392523078,1761606547115,-1200.0,0.00014848,2]
[392523079,1761606547151,-300.0,0.00014848,2]
[392523080,1761606547180,-29.4733237,0.00014849,2]
[392523082,1761606552915,175.85437155,0.000147,2]
[392523083,1761606552947,658.50693562,0.000147,2]
[392523084,1761606560792,207.66175221,0.000147,2]
[392523086,1761606576216,207.66175221,0.000147,2]
[392523087,1761606591182,207.66175221,0.000147,2]
[392523089,1761606606549,834.36130717,0.000147,2]
[392523092,1761606614565,1042.02305938,0.000147,2]
[392523093,1761606630140,1042.02305938,0.000147,2]
[392523109,1761606632011,-834.36130717,0.00014849,2]
[392523110,1761606632020,-207.66175221,0.00014849,2]
[392523111,1761606632030,-300.0,0.00014849,2]
[392523112,1761606632040,-300.0,0.00014849,2]
[392523113,1761606632050,-1200.0,0.00014849,2]
[392523114,1761606632059,-300.0,0.00014849,2]
[392523115,1761606632068,-300.0,0.00014849,2]
[392523116,1761606632078,-500.0,0.0001485,2]
[392523117,1761606632088,-500.0,0.0001485,2]
[392523118,1761606632097,-61.98522848,0.0001485,2]
[392523119,1761606632110,-438.01477152,0.0001485,2]
[392523120,1761606632119,-500.0,0.0001485,2]
[392523121,1761606632129,-500.0,0.0001485,2]
[392523122,1761606632139,-288.48522848,0.00015238,2]
[392523123,1761606632150,-1481.82619142,0.00015238,2]
[392523125,1761606632184,-6735.2210581,0.00015238,2]
[392523127,1761606632194,-166.98049325,0.00015238,2]
[392523129,1761606632204,-1597.09913574,0.00016219,2]
[392523132,1761606632214,-891.0,0.00016253,2]
[392523134,1761606632224,-420.0,0.00016254,2]
[392523136,1761606632234,-178.95135915,0.00016317,2]
[392523138,1761606632257,-424.09908033,0.00016317,2]
[392523140,1761606632273,-500.0,0.00016317,2]
[392523142,1761606632282,-500.0,0.00016317,2]
[392523144,1761606632291,-500.0,0.00016317,2]
[392523146,1761606632301,-500.0,0.00016317,2]
[392523147,1761606632311,-500.0,0.00016317,2]
[392523148,1761606632320,-500.0,0.00016317,2]
[392523149,1761606632329,-500.0,0.00016317,2]
[392523150,1761606632339,-500.0,0.00016317,2]
[392523151,1761606632350,-500.0,0.00016317,2]
[392523152,1761606632360,-500.0,0.00016317,2]
[392523153,1761606632369,-500.0,0.00016317,2]
[392523154,1761606632380,-500.0,0.00016317,2]
[392523155,1761606632389,-500.0,0.00016317,2]
[392523156,1761606632399,-500.0,0.00016317,2]
[392523157,1761606632409,-500.0,0.00016317,2]
[392523158,1761606632420,-437.51154376,0.00016317,2]
[392523159,1761606632430,-500.0,0.00016317,2]
[392523160,1761606632440,-500.0,0.00016317,2]
[392523161,1761606632451,-500.0,0.00016317,2]
[392523162,1761606632461,-500.0,0.00016317,2]
[392523163,1761606632471,-500.0,0.00016317,2]
[392523164,1761606632480,-500.0,0.00016317,2]
[392523165,1761606632490,-500.0,0.00016317,2]
[392523166,1761606632499,-500.0,0.00016317,2]
[392523167,1761606632509,-500.0,0.00016317,2]
[392523168,1761606632518,-500.0,0.00016317,2]
[392523169,1761606632527,-500.0,0.00016317,2]
[392523170,1761606632536,-423.23086899,0.00016317,2]
[392523171,1761606632546,-281.11946261,0.0001632,2]
[392523172,1761606632556,-524.08868761,0.0001632,2]
[392523173,1761606632565,-500.0,0.0001632,2]
[392523174,1761606632574,-500.0,0.0001632,2]
[392523175,1761606632584,-500.0,0.0001632,2]
[392523176,1761606632593,-500.0,0.0001632,2]
[392523177,1761606632603,-276.1785245,0.0001632,2]
[392523178,1761606632612,-23544.42739629,0.00016321,2]
[392523179,1761606632623,-755.55724811,0.00016321,2]
[392523180,1761606632653,-500.0,0.00016317,2]
[392523181,1761606632662,-500.0,0.00016317,2]
[392523182,1761606632671,-500.0,0.00016317,2]
[392523183,1761606632682,-34027.3353115,0.00016321,2]
[392523184,1761606632695,-1680.0,0.00016334,2]
[392523185,1761606632704,-500.0,0.000164,2]
[392523186,1761606632714,-500.0,0.000164,2]
[392523187,1761606632723,-1597.09913571,0.00016471,2]
[392523188,1761606632733,-311.5813067,0.0001659,2]
[392523189,1761606632742,-1597.09913571,0.00016723,2]
[392523190,1761606632751,-891.0,0.00016776,2]
[392523191,1761606632763,-891.0,0.00016782,2]
[392523192,1761606632772,-891.0,0.00016805,2]
[392523193,1761606632781,-891.0,0.00016839,2]
[392523194,1761606632790,-891.0,0.00016841,2]
[392523195,1761606632800,-1019.32486443,0.00016849,2]
[392523196,1761606632809,-891.0,0.00016851,2]
[392523197,1761606632818,-891.0,0.00016892,2]
[392523198,1761606632828,-403.5761775,0.00016897,2]
[392523199,1761606632837,-41766.1732539,0.00016916,2]
[392523200,1761606632846,-891.0,0.00016924,2]
[392523201,1761606632856,-675.45729872,0.00016948,2]
[392523202,1761606632865,-1000.0,0.00016948,2]
[392523203,1761606632874,-891.0,0.00016956,2]
[392523204,1761606632883,-1597.09913571,0.00016975,2]
[392523205,1761606632892,-485.19,0.0001698,3]
[392523206,1761606632900,-323.45,0.0001699,3]
[392523207,1761606632909,-161.72,0.0001699,3]
[392523208,1761606632919,-300.0,0.00017,2]
[392523209,1761606632929,-300.0,0.00017,2]
[392523210,1761606632938,-300.0,0.00017,2]
[392523211,1761606632947,-300.0,0.00017,2]
[392523212,1761606632957,-300.0,0.00017,2]
[392523213,1761606632966,-300.0,0.00017,2]
[392523214,1761606632975,-300.0,0.00017,2]
[392523215,1761606632985,-8062.94800331,0.00017,2]
[392523216,1761606632994,-891.0,0.00017041,2]
[392523217,1761606633004,-891.0,0.00017056,2]
[392523218,1761606633013,-891.0,0.00017056,2]
[392523219,1761606633022,-157.65464226,0.0001709,2]
[392523220,1761606633031,-250.45450107,0.0001709,2]
[392523221,1761606633041,-891.0,0.00017118,2]
[392523222,1761606633051,-891.0,0.00017131,2]
[392523223,1761606633060,-500.0,0.00017153,2]
[392523224,1761606633070,-500.0,0.00017153,2]
[392523225,1761606633079,-500.0,0.00017153,2]
[392523226,1761606633089,-500.0,0.00017153,2]
[392523227,1761606633098,-500.0,0.00017153,2]
[392523228,1761606633107,-500.0,0.00017153,2]
[392523229,1761606633117,-500.0,0.00017153,2]
[392523230,1761606633126,-406.82086526,0.00017153,2]
[392523231,1761606633136,-500.0,0.00017153,2]
[392523232,1761606633146,-162.77053178,0.00017153,2]
[392523233,1761606633155,-500.0,0.00017153,2]
[392523234,1761606633164,-151.0,0.00017153,2]
[392523235,1761606633174,-500.0,0.00017153,2]
[392523236,1761606633183,-500.0,0.00017153,2]
[392523237,1761606633192,-195.53526998,0.00017153,2]
[392523238,1761606633202,-500.0,0.00017153,2]
[392523239,1761606633211,-500.0,0.00017153,2]
[392523240,1761606633221,-151.0,0.00017153,2]
[392523241,1761606633231,-151.0,0.00017153,2]
[392523242,1761606633241,-500.0,0.00017153,2]
[392523243,1761606633250,-500.0,0.00017153,2]
[392523244,1761606633259,-596.0,0.00017153,2]
[392523245,1761606633268,-500.0,0.00017153,2]
[392523246,1761606633281,-215.32044488,0.00017153,2]
[392523247,1761606633293,-891.0,0.00017171,2]
[392523248,1761606633303,-891.0,0.00017189,2]
[392523249,1761606633312,-500.0,0.00017208,2]
[392523250,1761606633322,-500.0,0.00017208,2]
[392523251,1761606633331,-500.0,0.00017208,2]
[392523252,1761606633341,-151.0,0.00017208,2]
[392523253,1761606633350,-500.0,0.00017208,2]
[392523254,1761606633359,-500.0,0.00017208,2]
[392523255,1761606633368,-500.0,0.00017208,2]
[392523256,1761606633378,-500.0,0.00017208,2]
[392523257,1761606633387,-151.0,0.00017208,2]
[392523258,1761606633397,-531.0,0.00017208,2]
[392523259,1761606633406,-500.0,0.00017208,2]
[392523260,1761606633415,-596.0,0.00017208,2]
[392523261,1761606633425,-500.0,0.00017208,2]
[392523262,1761606633434,-1597.09913571,0.00017227,2]
[392523263,1761606633443,-891.0,0.00017227,2]
[392523264,1761606633453,-500.0,0.0001725,7]
[392523265,1761606633464,-500.0,0.0001725,7]
[392523266,1761606633473,-500.0,0.0001725,7]
[392523267,1761606633483,-500.0,0.0001725,7]
[392523268,1761606633493,-500.0,0.0001725,7]
[392523269,1761606633502,-500.0,0.0001725,7]
[392523270,1761606633511,-500.0,0.0001725,7]
[392523271,1761606633522,-221.46844435,0.0001725,7]
[392523272,1761606637842,-859.04,0.00016154,2]
[392523277,1761606637957,-806.35541283,0.00016154,2]
[392523284,1761606643095,-19608.91311704,0.00016154,2]
[392523285,1761606643106,-500.0,0.00016317,2]
[392523286,1761606643116,-500.0,0.00016317,2]
[392523287,1761606643126,-500.0,0.00016317,2]
[392523288,1761606643136,-500.0,0.00016317,2]
[392523289,1761606643146,-500.0,0.00016317,2]
[392523290,1761606643155,-500.0,0.00016317,2]
[392523291,1761606643165,-500.0,0.00016317,2]
[392523292,1761606643174,-500.0,0.00016317,2]
[392523293,1761606643184,-500.0,0.00016317,2]
[392523294,1761606643193,-500.0,0.00016317,2]
[392523295,1761606643203,-500.0,0.00016317,2]
[392523296,1761606643213,-500.0,0.00016317,2]
[392523297,1761606643223,-500.0,0.00016317,2]
[392523298,1761606643233,-500.0,0.00016317,2]
[392523299,1761606643242,-500.0,0.00016317,2]
[392523300,1761606643252,-500.0,0.00016317,2]
[392523301,1761606643261,-500.0,0.00016317,2]
[392523302,1761606643271,-500.0,0.00016317,2]
[392523303,1761606643281,-500.0,0.00016317,2]
[392523304,1761606643290,-500.0,0.00016317,2]
[392523305,1761606643300,-500.0,0.00016317,2]
[392523306,1761606643309,-500.0,0.00016317,2]
[392523307,1761606643319,-500.0,0.00016317,2]
[392523308,1761606643329,-500.0,0.00016317,2]
[392523309,1761606643338,-500.0,0.00016317,2]
[392523310,1761606643347,-500.0,0.00016317,2]
[392523311,1761606643357,-500.0,0.00016317,2]
[392523312,1761606643367,-500.0,0.00016317,2]
[392523313,1761606643376,-500.0,0.00016317,2]
[392523314,1761606643386,-88.08688296,0.00016317,2]